fUSD/lending_fUSD_20250724
["ID","MTS","AMOUNT","RATE_DAILY","PERIOD"]
[374498470,1753325436548,-500.0,0.000229,2]
[374498471,1753325436557,-500.0,0.000229,2]
[374498472,1753325436567,-500.0,0.000229,2]
[374498473,1753325436577,-500.0,0.000229,2]
[374498474,1753325436587,-500.0,0.000229,2]
[374498475,1753325436597,-500.0,0.000229,2]
[374498476,1753325436607,-500.0,0.000229,2]
[374498477,1753325436616,-500.0,0.000229,2]
[374498478,1753325436628,-500.0,0.000229,2]
[374498479,1753325436637,-500.0,0.000229,2]
[374498480,1753325436647,-500.0,0.000229,2]
[374498481,1753325436656,-500.0,0.000229,2]
[374498482,1753325436666,-500.0,0.000229,2]
[374498483,1753325436675,-500.0,0.000229,2]
[374498484,1753325436685,-500.0,0.000229,2]
[374498485,1753325436695,-500.0,0.000229,2]
[374498486,1753325436705,-500.0,0.000229,2]
[374498487,1753325436714,-500.0,0.000229,2]
[374498488,1753325436724,-944.0,0.000229,2]
[374498489,1753325436734,-500.0,0.000229,2]
[374498490,1753325436743,-500.0,0.000229,2]
[374498491,1753325436753,-500.0,0.000229,2]
[374498492,1753325436763,-500.0,0.000229,2]
[374498493,1753325436773,-500.0,0.000229,2]
[374498494,1753325436783,-500.0,0.000229,2]
[374498495,1753325436792,-500.0,0.000229,2]
[374498496,1753325436802,-500.0,0.000229,2]
[374498497,1753325436812,-500.0,0.000229,2]
[374498498,1753325436822,-500.0,0.000229,2]
[374498499,1753325436834,-500.0,0.000229,2]
[374498500,1753325436848,-500.0,0.000229,2]
[374498501,1753325436858,-500.0,0.000229,2]
[374498502,1753325436868,-500.0,0.000229,2]
[374498503,1753325436879,-500.0,0.000229,2]
[374498504,1753325436888,-500.0,0.000229,2]
[374498505,1753325436897,-500.0,0.000229,2]
[374498506,1753325436908,-500.0,0.000229,2]
[374498507,1753325436917,-500.0,0.000229,2]
[374498508,1753325436928,-500.0,0.000229,2]
[374498509,1753325436938,-500.0,0.000229,2]
[374498510,1753325436950,-500.0,0.000229,2]
[374498511,1753325436959,-500.0,0.000229,2]
[374498512,1753325436970,-500.0,0.000229,2]
[374498513,1753325436979,-500.0,0.000229,2]
[374498514,1753325436990,-500.0,0.000229,2]
[374498515,1753325437000,-500.0,0.000229,2]
[374498516,1753325437012,-500.0,0.000229,2]
[374498517,1753325437021,-500.0,0.000229,2]
[374498518,1753325437031,-500.0,0.000229,2]
[374498519,1753325437040,-500.0,0.000229,2]
[374498520,1753325437050,-500.0,0.000229,2]
[374498521,1753325437059,-500.0,0.000229,2]
[374498522,1753325437069,-500.0,0.000229,2]
[374498523,1753325437080,-500.0,0.000229,2]
[374498524,1753325437091,-500.0,0.000229,2]
[374498525,1753325437102,-500.0,0.000229,2]
[374498526,1753325437112,-500.0,0.000229,2]
[374498527,1753325437122,-500.0,0.000229,2]
[374498528,1753325437131,-500.0,0.000229,2]
[374498529,1753325437140,-500.0,0.000229,2]
[374498530,1753325437150,-500.0,0.000229,2]
[374498531,1753325437159,-500.0,0.000229,2]
[374498532,1753325437170,-500.0,0.000229,2]
[374498533,1753325437191,-500.0,0.000229,2]
[374498534,1753325437204,-500.0,0.000229,2]
[374498535,1753325437214,-500.0,0.000229,2]
[374498536,1753325437223,-500.0,0.000229,2]
[374498537,1753325437233,-500.0,0.000229,2]
[374498538,1753325437244,-500.0,0.000229,2]
[374498539,1753325437255,-500.0,0.000229,2]
[374498540,1753325437265,-500.0,0.000229,2]
[374498541,1753325437278,-500.0,0.000229,2]
[374498542,1753325437289,-500.0,0.000229,2]
[374498543,1753325437299,-500.0,0.000229,2]
[374498544,1753325437310,-500.0,0.000229,2]
[374498545,1753325437322,-500.0,0.000229,2]
[374498546,1753325437331,-500.0,0.000229,2]
[374498547,1753325437341,-500.0,0.000229,2]
[374498548,1753325437351,-500.0,0.000229,2]
[374498549,1753325437361,-500.0,0.000229,2]
[374498550,1753325437371,-500.0,0.000229,2]
[374498551,1753325437381,-500.0,0.000229,2]
[374498552,1753325437391,-500.0,0.000229,2]
[374498553,1753325437401,-500.0,0.000229,2]
[374498554,1753325437410,-500.0,0.000229,2]
[374498555,1753325437420,-500.0,0.000229,2]
[374498556,1753325437430,-500.0,0.000229,2]
[374498557,1753325437439,-500.0,0.000229,2]
[374498558,1753325437450,-500.0,0.000229,2]
[374498559,1753325437459,-500.0,0.000229,2]
[374498560,1753325437469,-500.0,0.000229,2]
[374498561,1753325437481,-500.0,0.000229,2]
[374498562,1753325437491,-500.0,0.000229,2]
[374498563,1753325437502,-500.0,0.000229,2]
[374498564,1753325437513,-500.0,0.000229,2]
[374498565,1753325437523,-500.0,0.000229,2]
[374498566,1753325437532,-500.0,0.000229,2]
[374498567,1753325437541,-500.0,0.000229,2]
[374498568,1753325437552,-500.0,0.000229,2]
[374498569,1753325437562,-500.0,0.000229,2]
[374498570,1753325437575,-500.0,0.000229,2]
[374498571,1753325437584,-500.0,0.000229,2]
[374498572,1753325437594,-500.0,0.000229,2]
[374498573,1753325437603,-500.0,0.000229,2]
[374498574,1753325437612,-500.0,0.000229,2]
[374498575,1753325437622,-500.0,0.000229,2]
[374498576,1753325437631,-500.0,0.000229,2]
[374498577,1753325437641,-500.0,0.000229,2]
[374498578,1753325437650,-500.0,0.000229,2]
[374498579,1753325437660,-500.0,0.000229,2]
[374498580,1753325437669,-500.0,0.000229,2]
[374498581,1753325437678,-500.0,0.000229,2]
[374498582,1753325437688,-500.0,0.000229,2]
[374498583,1753325437697,-500.0,0.000229,2]
[374498584,1753325437707,-500.0,0.000229,2]
[374498585,1753325437716,-500.0,0.000229,2]
[374498586,1753325437727,-500.0,0.000229,2]
[374498587,1753325437736,-500.0,0.000229,2]
[374498588,1753325437746,-500.0,0.000229,2]
[374498589,1753325437755,-500.0,0.000229,2]
[374498590,1753325437765,-500.0,0.000229,2]
[374498592,1753325437774,-500.0,0.000229,2]
[374498593,1753325437783,-500.0,0.000229,2]
[374498594,1753325437793,-500.0,0.000229,2]
[374498595,1753325437802,-500.0,0.000229,2]
[374498596,1753325437812,-500.0,0.000229,2]
[374498597,1753325437821,-500.0,0.000229,2]
[374498598,1753325437831,-500.0,0.000229,2]
[374498599,1753325437840,-500.0,0.000229,2]
[374498600,1753325437850,-500.0,0.000229,2]
[374498601,1753325437859,-500.0,0.000229,2]
[374498602,1753325437869,-500.0,0.000229,2]
[374498603,1753325437878,-500.0,0.000229,2]
[374498604,1753325437888,-500.0,0.000229,2]
[374498605,1753325437897,-500.0,0.000229,2]
[374498606,1753325437908,-500.0,0.000229,2]
[374498607,1753325437917,-500.0,0.000229,2]
[374498608,1753325437927,-500.0,0.000229,2]
[374498609,1753325437936,-500.0,0.000229,2]
[374498610,1753325437946,-500.0,0.000229,2]
[374498611,1753325437955,-500.0,0.000229,2]
[374498612,1753325437976,-500.0,0.000229,2]
[374498613,1753325437987,-500.0,0.000229,2]
[374498614,1753325437997,-500.0,0.000229,2]
[374498615,1753325438007,-500.0,0.000229,2]
[374498616,1753325438026,-500.0,0.000229,2]
[374498617,1753325438036,-500.0,0.000229,2]
[374498618,1753325438046,-500.0,0.000229,2]
[374498619,1753325438055,-500.0,0.000229,2]
[374498620,1753325438065,-500.0,0.000229,2]
[374498621,1753325438074,-500.0,0.000229,2]
[374498622,1753325438083,-500.0,0.000229,2]
[374498623,1753325438092,-500.0,0.000229,2]
[374498624,1753325438102,-500.0,0.000229,2]
[374498625,1753325438111,-500.0,0.000229,2]
[374498626,1753325438121,-500.0,0.000229,2]
[374498627,1753325438130,-500.0,0.000229,2]
[374498628,1753325438140,-500.0,0.000229,2]
[374498629,1753325438149,-500.0,0.000229,2]
[374498631,1753325438158,-500.0,0.000229,2]
[374498633,1753325438167,-500.0,0.000229,2]
[374498634,1753325438182,-500.0,0.000229,2]
[374498635,1753325438192,-500.0,0.000229,2]
[374498636,1753325438201,-500.0,0.000229,2]
[374498637,1753325438210,-500.0,0.000229,2]
[374498639,1753325438220,-500.0,0.000229,2]
[374498641,1753325438230,-500.0,0.000229,2]
[374498643,1753325438239,-500.0,0.000229,2]
[374498646,1753325438250,-500.0,0.000229,2]
[374498647,1753325438260,-500.0,0.000229,2]
[374498650,1753325438271,-500.0,0.000229,2]
[374498652,1753325438280,-500.0,0.000229,2]
[374498654,1753325438290,-500.0,0.000229,2]
[374498656,1753325438299,-500.0,0.000229,2]
[374498658,1753325438309,-500.0,0.000229,2]
[374498659,1753325438318,-500.0,0.000229,2]
[374498661,1753325438327,-500.0,0.000229,2]
[374498663,1753325438337,-500.0,0.000229,2]
[374498665,1753325438348,-500.0,0.000229,2]
[374498667,1753325438357,-500.0,0.000229,2]
[374498669,1753325438367,-500.0,0.000229,2]
[374498671,1753325438377,-500.0,0.000229,2]
[374498673,1753325438386,-500.0,0.000229,2]
[374498676,1753325438396,-500.0,0.000229,2]
[374498678,1753325438405,-500.0,0.000229,2]
[374498680,1753325438415,-617.5968,0.000229,2]
[374498682,1753325438424,-500.0,0.000229,2]
[374498684,1753325438435,-500.0,0.000229,2]
[374498686,1753325438445,-500.0,0.000229,2]
[374498688,1753325438454,-500.0,0.000229,2]
[374498690,1753325438463,-500.0,0.000229,2]
[374498692,1753325438472,-500.0,0.000229,2]
[374498693,1753325438482,-520.0,0.000229,2]
[374498695,1753325438492,-947.0,0.000229,2]
[374498697,1753325438501,-151.0,0.000229,7]
[374498698,1753325438511,-152.381679,0.000229,7]
[374498700,1753325438520,-774.0,0.000229,2]
[374498702,1753325438530,-151.0,0.000229,7]
[374498704,1753325438540,-151.0,0.000229,7]
[374498706,1753325438550,-151.0,0.000229,7]
[374498708,1753325438560,-153.132345,0.000229,7]
[374498710,1753325438569,-239.0,0.000229,2]
[374498712,1753325438578,-151.0,0.000229,7]
[374498714,1753325438588,-996.17758463,0.00022905,2]
[374498716,1753325438597,-150.0,0.00022918,2]
[374498718,1753325438607,-150.0,0.00022922,2]
[374498720,1753325438617,-150.0,0.00022924,2]
[374498722,1753325438627,-432.0,0.00022934,2]
[374498724,1753325438636,-280.72122266,0.00022934,8]
[374498726,1753325438646,-150.0,0.00022936,2]
[374498728,1753325438655,-150.0,0.00022942,2]
[374498730,1753325438665,-2945.0,0.00022944,2]
[374498732,1753325438674,-150.0,0.00022944,2]
[374498734,1753325438684,-150.0,0.00022971,2]
[374498736,1753325438693,-627.87193417,0.00022973,2]
[374498738,1753325438703,-501.95512263,0.00022973,2]
[374498740,1753325438713,-500.0,0.00022973,2]
[374498742,1753325438722,-502.21407794,0.00022973,2]
[374498743,1753325438732,-500.0,0.00022973,2]
[374498745,1753325438741,-503.61642666,0.00022973,2]
[374498747,1753325438750,-501.7695935,0.00022973,2]
[374498749,1753325438760,-500.49275237,0.00022973,2]
[374498751,1753325438769,-502.64486841,0.00022973,2]
[374498753,1753325438779,-501.53066362,0.00022973,2]
[374498755,1753325438790,-150.0,0.00022983,2]
[374498757,1753325438799,-150.0,0.00022985,2]
[374498759,1753325438809,-184.18849523,0.00022989,2]
[374498761,1753325438818,-150.0,0.0002299,2]
[374498763,1753325438828,-226.38373248,0.00022991,2]
[374498765,1753325438837,-300.0,0.00022998,2]
[374498767,1753325438847,-1481.20669995,0.00022999,2]
[374499051,1753325441665,-6055.0,0.00022332,2]
[374499053,1753325441676,-151.0,0.000229,7]
[374499055,1753325441685,-151.0,0.000229,7]
[374499057,1753325441694,-20575.25648078,0.00022999,2]
[374499076,1753325441863,-787.36629238,0.00022999,2]
[374499078,1753325441874,-989.5835526,0.00022999,2]
[374499080,1753325441887,-1247.05674392,0.00022999,2]
[374499082,1753325441898,-9665.0396109,0.00022999,2]
[374499126,1753325442310,-697.14137208,0.00022999,2]
[374499205,1753325443050,-211.01152796,0.000225,3]
[374499207,1753325443060,-375218.17223548,0.00022999,2]
[374499209,1753325443072,-34050.56038949,0.00022999,2]
[374499215,1753325443118,-387.47993217,0.00022999,2]
[374499224,1753325443202,-462.34000628,0.00022999,2]
[374499231,1753325443265,-418.55768,0.00022999,2]
[374499497,1753325445865,-305.10916548,0.00022084,2]
[374499499,1753325445875,-285.55203266,0.000229,8]
[374499501,1753325445886,-3331.2928019,0.00022999,2]
[374499971,1753325510104,162.52,0.00025746,120]
[374499972,1753325560321,505.0,0.00027397,120]
[374499973,1753325592596,500.0,0.00027397,120]
[374499974,1753325595608,2000.0,0.00027397,120]
[374499975,1753325602059,500.0,0.00027397,120]
[374499978,1753325816401,250.23,0.0001665,2]
[374499985,1753325987648,156.49,0.00013699,2]
[374499990,1753326160921,1381.42,0.00027397,120]
[374499992,1753326194912,504.796254,0.00027397,120]
[374499993,1753326198544,1115.68927,0.00027397,120]
[374499994,1753326201395,500.0,0.00027397,120]
[374499995,1753326209988,500.0,0.00027397,120]
[374500002,1753326432789,2050.856435,0.00027397,120]
[374500022,1753326632186,-695.38,0.00019178,2]
[374500023,1753326632196,-220.20985626,0.00020074,2]
[374500024,1753326632206,-695.38,0.00020759,2]
[374500025,1753326632215,-494.38,0.00021034,2]
[374500026,1753326632225,-250.0,0.00021096,2]
[374500027,1753326632235,-455.14,0.00021149,2]
[374500028,1753326632245,-291.95,0.0002115,2]
[374500029,1753326632254,-170.42,0.00021155,2]
[374500030,1753326632264,-231.67255831,0.00021166,2]
[374500031,1753326632276,-2061.63331793,0.00021166,2]
[374500032,1753326632287,-471.08,0.00021215,2]
[374500033,1753326632296,-12.75758,0.00021253,3]
[374500034,1753326632352,-653.24242,0.00021253,3]
[374500035,1753326632362,-153.88949094,0.00021276,2]
[374500036,1753326632374,-6.24050906,0.00021276,2]
[374500037,1753326632383,-151.0,0.00021291,2]
[374500039,1753326632393,-135.13141192,0.00021297,2]
[374500042,1753326632404,-418.54375762,0.00021297,2]
[374500044,1753326632415,-646.32483046,0.00021297,2]
[374500045,1753326632425,-51.21440048,0.00021298,2]
[374500046,1753326632469,-480.87813998,0.00021298,2]
[374500050,1753326632538,-467.90745954,0.00021298,2]
[374500051,1753326632548,-300.0,0.00021303,2]
[374500052,1753326632557,-11913.12,0.00021304,2]
[374500053,1753326632567,-156.49,0.00021404,2]
[374500054,1753326632577,-159.98,0.00021502,2]
[374500055,1753326632586,-4181.16,0.00021502,2]
[374500056,1753326632597,-180.0,0.00021511,7]
[374500058,1753326632607,-355.76,0.0002152,2]
[374500060,1753326632616,-1970.83,0.00021615,2]
[374500062,1753326632628,-312.05685454,0.00021692,2]
[374500064,1753326632638,-212.1,0.00021785,2]
[374500066,1753326632647,-212.1,0.00021796,2]
[374500068,1753326632656,-250.0,0.00021802,2]
[374500070,1753326632667,-258.0,0.00021802,2]
[374500072,1753326632677,-212.1,0.00021808,2]
[374500074,1753326632687,-3467.02978741,0.00021816,2]
[374500076,1753326632699,-1533.35021259,0.00021816,2]
[374500078,1753326632710,-212.1,0.00021819,2]
[374500080,1753326632720,-212.1,0.00021831,2]
[374500081,1753326632729,-212.1,0.00021842,2]
[374500082,1753326632739,-3286.46954991,0.00021844,2]
[374500083,1753326632748,-212.1,0.00021854,2]
[374500084,1753326632757,-9216.856,0.00021864,2]
[374500085,1753326632767,-600.0,0.00021864,2]
[374500086,1753326632776,-239.84119403,0.00021864,2]
[374500087,1753326632786,-212.1,0.00021865,2]
[374500088,1753326632795,-212.1,0.00021876,2]
[374500089,1753326632805,-212.1,0.00021888,2]
[374500090,1753326632814,-212.1,0.00021899,2]
[374500091,1753326632823,-206.88917303,0.000219,6]
[374500092,1753326632833,-1000.0,0.00021906,2]
[374500093,1753326632842,-212.1,0.00021911,2]
[374500094,1753326632851,-5000.0,0.00021918,2]
[374500095,1753326632860,-36.51942723,0.00021922,2]
[374500096,1753326632873,-175.58057277,0.00021922,2]
[374500097,1753326632883,-212.1,0.00021934,2]
[374500098,1753326632892,-212.1,0.00021945,2]
[374500099,1753326632902,-212.1,0.00021957,2]
[374500100,1753326632911,-212.1,0.00021968,2]
[374500101,1753326632921,-212.1,0.0002198,2]
[374500102,1753326632930,-212.1,0.00021991,2]
[374500103,1753326632941,-41.28114697,0.00022,2]
[374500104,1753326632960,-991.95885303,0.00022,2]
[374500105,1753326632979,-3000.0,0.00022,2]
[374500106,1753326632989,-56.68344761,0.00022,2]
[374500107,1753326633020,-635.31655239,0.00022,2]
[374500108,1753326633030,-192.77344761,0.00022,2]
[374500109,1753326633042,-27.22655239,0.00022,2]
[374500110,1753326633052,-2089.06787581,0.00022,2]
[374500111,1753326633062,-500.0,0.00022,2]
[374500112,1753326633072,-150.0,0.00022,2]
[374500113,1753326633082,-152.64637219,0.00022,2]
[374500114,1753326633091,-500.0,0.00022,2]
[374500115,1753326633101,-500.0,0.00022,2]
[374500116,1753326633111,-150.0,0.00022,2]
[374500117,1753326633120,-244.04243251,0.00022,2]
[374500118,1753326633132,-207.95756749,0.00022,2]
[374500119,1753326633142,-212.1,0.00022002,2]
[374500120,1753326633152,-162.52,0.00022068,2]
[374500121,1753326633162,-6562.53,0.00022094,2]
[374500122,1753326633171,-150.0,0.000221,2]
[374500123,1753326633182,-500.0,0.000221,2]
[374500124,1753326633192,-500.0,0.000221,2]
[374500125,1753326633202,-7.01305492,0.000221,2]
[374500126,1753326633254,-492.98694508,0.000221,2]
[374500127,1753326633264,-95.95114483,0.000221,2]
[374500128,1753326633275,-54.04885517,0.000221,2]
[374500129,1753326633285,-500.0,0.000221,2]
[374500130,1753326633295,-150.0,0.000221,2]
[374500131,1753326633305,-500.0,0.000221,2]
[374500132,1753326633315,-150.0,0.000221,2]
[374500133,1753326633325,-150.33767371,0.000221,2]
[374500134,1753326633336,-201.82609243,0.000221,2]
[374500135,1753326633346,-206.88917293,0.00022107,6]
[374500136,1753326633356,-160.0,0.00022158,2]
[374500137,1753326633366,-220.0,0.00022192,7]
[374500138,1753326633376,-301.52,0.00022228,2]
[374500139,1753326633385,-72.98128167,0.00022228,2]
[374500140,1753326633442,-1103.22871833,0.00022228,2]
[374500141,1753326633453,-459.31,0.00022228,2]
[374500142,1753326633462,-172.46,0.00022228,2]
[374500143,1753326633472,-366.54,0.00022228,2]
[374500144,1753326633482,-333.86,0.00022228,2]
[374500145,1753326633492,-500.0,0.00022274,2]
[374500146,1753326633502,-150.0,0.00022274,2]
[374500147,1753326633513,-215.08209214,0.00022274,2]
[374500148,1753326633524,-284.91790786,0.00022274,2]
[374500149,1753326633534,-500.0,0.00022274,2]
[374500150,1753326633544,-64.91616451,0.00022274,2]
[374500151,1753326638111,-387.08383549,0.00022274,2]
[374500152,1753326638121,-206.88917293,0.00022314,7]
[374500153,1753326638130,-413.74478449,0.00022339,2]
[374500198,1753326638907,6062.85399441,0.00027397,120]
[374500323,1753326640116,-281.63521551,0.00022339,2]
[374500325,1753326640126,-553.19896357,0.00022374,2]
[374500327,1753326640135,-500.0,0.00022374,2]
[374500329,1753326640145,-150.0,0.00022374,2]
[374500331,1753326640155,-500.0,0.00022374,2]
[374500334,1753326640165,-150.0,0.00022374,2]
[374500336,1753326640174,-500.0,0.00022374,2]
[374500338,1753326640183,-150.0,0.00022374,2]
[374500359,1753326640487,-211.01152796,0.00022394,2]
[374500363,1753326640528,-150.0,0.00022398,2]
[374500365,1753326640539,-150.0,0.00022398,2]
[374500367,1753326640549,-175.041,0.00022398,2]
[374500369,1753326640559,-150.0,0.00022398,2]
[374500371,1753326640568,-150.0,0.00022398,2]
[374500374,1753326640578,-170.0,0.00022398,2]
[374500376,1753326640587,-150.0,0.00022398,2]
[374500378,1753326640597,-150.0,0.00022398,2]
[374500379,1753326640607,-150.0,0.00022398,2]
[374500381,1753326640617,-150.0,0.00022398,2]
[374500384,1753326640626,-150.0,0.00022398,2]
[374500385,1753326640644,-807.0,0.00022398,2]
[374500387,1753326640653,-3354.0,0.00022398,2]
[374500389,1753326640663,-953.0,0.00022398,2]
[374500392,1753326640674,-563.0,0.00022398,2]
[374500394,1753326640686,-2018.0,0.00022398,2]
[374500395,1753326640695,-960.0,0.00022398,2]
[374500398,1753326640705,-1269.0,0.00022398,2]
[374500400,1753326640716,-1289.0,0.00022398,2]
[374500402,1753326640726,-596.0,0.00022398,2]
[374500404,1753326640736,-1688.0,0.00022398,2]
[374500406,1753326640745,-890.0,0.00022398,2]
[374500408,1753326640754,-299.408,0.00022398,2]
[374500410,1753326640763,-4129.0,0.00022398,2]
[374500412,1753326640772,-6055.0,0.00022398,2]
[374500413,1753326640782,-21379.0,0.00022398,2]
[374500415,1753326640791,-863.0,0.00022398,2]
[374500418,1753326640801,-150.0,0.00022398,2]
[374500419,1753326640811,-150.0,0.00022398,2]
[374500421,1753326640821,-150.0,0.00022398,2]
[374500423,1753326640831,-150.0,0.00022398,2]
[374500425,1753326640840,-206.44199509,0.00022398,2]
[374500427,1753326640849,-151.41878444,0.00022398,2]
[374500429,1753326640859,-150.0,0.00022398,2]
[374500431,1753326640868,-150.0,0.00022398,2]
[374500433,1753326640877,-500.0,0.00022398,2]
[374500435,1753326640887,-150.0,0.00022398,2]
[374500437,1753326640897,-150.0,0.00022398,2]
[374500439,1753326640906,-150.0,0.00022398,2]
[374500441,1753326640916,-150.12659445,0.00022398,2]
[374500443,1753326640925,-747.13318852,0.00022404,2]
[374500445,1753326640935,-9557.879672,0.00022412,2]
[374500447,1753326640945,-600.0,0.00022412,2]
[374500449,1753326640954,-1000.0,0.000225,2]
[374500451,1753326640964,-1931.0,0.00022504,2]
[374500453,1753326640973,-206.88917293,0.00022521,7]
[374500455,1753326640983,-168.25,0.00022533,2]
[374500457,1753326640992,-747.13318847,0.00022535,2]
[374500460,1753326641002,-500.0,0.00022548,2]
[374500462,1753326641012,-150.0,0.00022548,2]
[374500464,1753326641021,-500.0,0.00022548,2]
[374500466,1753326641031,-452.0,0.00022548,2]
[374500468,1753326641040,-420.0,0.00022559,2]
[374500470,1753326641050,-420.0,0.0002256,2]
[374500471,1753326641062,-214.55,0.00022644,2]
[374500474,1753326641072,-500.0,0.00022648,2]
[374500476,1753326641081,-150.0,0.00022648,2]
[374500478,1753326641092,-500.0,0.00022648,2]
[374500480,1753326641102,-150.0,0.00022648,2]
[374500482,1753326641111,-192.4966852,0.00022648,2]
[374500484,1753326641120,-501.98943158,0.00022648,2]
[374500486,1753326641130,-747.13318847,0.00022667,2]
[374500488,1753326641139,-203.42178281,0.00022672,2]
[374500489,1753326641148,-150.0,0.00022672,2]
[374500491,1753326641157,-150.0,0.00022672,2]
[374500493,1753326641167,-150.0,0.00022672,2]
[374500496,1753326641177,-150.0,0.00022672,2]
[374500497,1753326641186,-150.0,0.00022672,2]
[374500500,1753326641196,-500.0,0.00022672,2]
[374500502,1753326641206,-150.0,0.00022672,2]
[374500504,1753326641215,-150.0,0.00022672,2]
[374500506,1753326641224,-150.0,0.00022672,2]
[374500508,1753326641234,-2000.0,0.000227,2]
[374500510,1753326641243,-288.0,0.000227,5]
[374500512,1753326641253,-206.88917293,0.00022728,7]
[374500514,1753326641263,-170.42,0.00022741,2]
[374500516,1753326641272,-420.0,0.0002278,2]
[374500518,1753326641281,-420.0,0.0002279,2]
[374500520,1753326641290,-747.13318847,0.00022798,2]
[374500522,1753326641300,-420.0,0.00022811,2]
[374500524,1753326641313,-657.12427894,0.00022821,2]
[374500526,1753326641323,-500.0,0.00022822,2]
[374500528,1753326641332,-267.43190875,0.00022822,2]
[374500530,1753326641341,-452.0,0.00022822,2]
[374500532,1753326641350,-420.0,0.00022849,2]
[374500534,1753326641359,-920.9887,0.0002289,2]
[374500536,1753326641369,-162.0423,0.0002289,2]
[374500538,1753326641378,-151.0,0.000229,7]
[374500540,1753326641387,-151.0,0.000229,7]
[374500542,1753326641396,-151.0,0.000229,7]
[374500544,1753326641405,-151.0,0.000229,7]
[374500546,1753326641414,-152.099588,0.000229,7]
[374500548,1753326641423,-155.956703,0.000229,7]
[374500550,1753326641433,-159.017298,0.000229,7]
[374500552,1753326641444,-151.0,0.000229,7]
[374500554,1753326641453,-159.017298,0.000229,7]
[374500556,1753326641462,-155.659673,0.000229,7]
[374500558,1753326641471,-978.31996816,0.000229,2]
[374500560,1753326641481,-216.596582,0.000229,7]
[374500562,1753326641489,-216.596582,0.000229,7]
[374500564,1753326641499,-20000.0,0.000229,2]
[374500566,1753326641507,-171.12493034,0.000229,2]
[374500568,1753326641518,-500.0,0.00022922,2]
[374500570,1753326641527,-152.95624327,0.00022922,2]
[374500572,1753326641537,-500.0,0.00022922,2]
[374500574,1753326641546,-747.13318847,0.00022929,2]
[374500576,1753326641555,-150.0,0.0002293,2]
[374500578,1753326641564,-206.88917293,0.00022934,8]
[374500580,1753326641573,-420.0,0.00022936,2]
[374500582,1753326641583,-150.0,0.00022946,2]
[374500584,1753326641592,-150.0,0.00022946,2]
[374500586,1753326641602,-150.0,0.00022946,2]
[374500588,1753326641611,-201.88609988,0.00022946,2]
[374500590,1753326641621,-352.69344308,0.00022946,2]
[374500592,1753326641631,-150.0,0.00022946,2]